Workbook

Sheet Dnevnik kilometrine
B1: DNEVNIK PREVOŽENIH KILOMETROV
C11: ŠTEVILO KILOMETROV | E11: SKUPNO
C12: ZA POVRAČILO | E12: POVRAČILO
C17: 2012-05-01 | E17: 2012-05-10
C19: OBDOBJE | E19: OBDOBJE
C20: ZAČETEK | E20: KONEC
C26: 54 | E26: 9,800
C28: POVRAČILO | E28: PREDHODNO STANJE GORIVA
C29: c/Kilometer | E29: ŠTEVEC KILOMETROV

Sheet Preračuni
B1: DNEVNIK PREVOŽENIH KILOMETROV
B5: DATUM | C5: DEJAVNOST | D5: ŠT. KILOM. 1 | E5: LOKACIJA | F5: ŠT. KILOM. 2 | G5: CILJ | H5: POVRAČILO | I5: LITROV | J5: STROŠEK | K5: ZA POVRAČILO | L5: PORABA GORIVA NA STO PREVOŽENIH KILOMETROV | M5: c/KILOMETER | N5: OPOMBE
B6: 2012-05-01 | C6: Izlet | D6: 10,123 | E6: Škarnice – Glavna ul. | F6: 10,130 | I6: 15.56 | J6: 64.11 € | K6: =kilometrov -> 7 | L6: =IF(OR(LEN(podatki[[#This Row],[ŠT. KILOM. 2]]),podatki[[#This Row],[ŠT. KILOM. 1]]=""),"",IFERROR(podatki[[#This Row],[ZA POVRAČILO]]/podatki[[#This Row],[LITROV]],"")) ->  | M6: =IF(podatki[[#This Row],[PORABA GORIVA NA STO PREVOŽENIH KILOMETROV]]="","",100*podatki[[#This Row],[STROŠEK]]/podatki[[#This Row],[ZA POVRAČILO]]) -> 
B7: 2012-05-01 | C7: Izlet | D7: 10,130 | E7: Pisarna | F7: 10,200 | G7: Češnjeva ulica | H7: Da | K7: =kilometrov -> 70 | L7: =IF(OR(LEN(podatki[[#This Row],[ŠT. KILOM. 2]]),podatki[[#This Row],[ŠT. KILOM. 1]]=""),"",IFERROR(podatki[[#This Row],[ZA POVRAČILO]]/podatki[[#This Row],[LITROV]],"")) ->  | M7: =IF(podatki[[#This Row],[PORABA GORIVA NA STO PREVOŽENIH KILOMETROV]]="","",100*podatki[[#This Row],[STROŠEK]]/podatki[[#This Row],[ZA POVRAČILO]]) -> 
B8: 2012-05-01 | C8: Izlet | D8: 10,200 | E8: Rjavo polje | F8: 10,285 | G8: Pisarna | H8: Da | K8: =kilometrov -> 85 | L8: =IF(OR(LEN(podatki[[#This Row],[ŠT. KILOM. 2]]),podatki[[#This Row],[ŠT. KILOM. 1]]=""),"",IFERROR(podatki[[#This Row],[ZA POVRAČILO]]/podatki[[#This Row],[LITROV]],"")) ->  | M8: =IF(podatki[[#This Row],[PORABA GORIVA NA STO PREVOŽENIH KILOMETROV]]="","",100*podatki[[#This Row],[STROŠEK]]/podatki[[#This Row],[ZA POVRAČILO]]) -> 
B9: 2012-05-02 | C9: Izlet | D9: 10,285 | E9: Pisarna | F9: 10,450 | G9: Vinograd Kolo | H9: Da | K9: =kilometrov -> 165 | L9: =IF(OR(LEN(podatki[[#This Row],[ŠT. KILOM. 2]]),podatki[[#This Row],[ŠT. KILOM. 1]]=""),"",IFERROR(podatki[[#This Row],[ZA POVRAČILO]]/podatki[[#This Row],[LITROV]],"")) ->  | M9: =IF(podatki[[#This Row],[PORABA GORIVA NA STO PREVOŽENIH KILOMETROV]]="","",100*podatki[[#This Row],[STROŠEK]]/podatki[[#This Row],[ZA POVRAČILO]]) -> 
B10: 2012-05-02 | C10: Gorivo | D10: 10,450 | E10: Lupina | I10: 11.20 | J10: 55.42 € | K10: =kilometrov -> 650 | L10: =IF(OR(LEN(podatki[[#This Row],[ŠT. KILOM. 2]]),podatki[[#This Row],[ŠT. KILOM. 1]]=""),"",IFERROR(podatki[[#This Row],[ZA POVRAČILO]]/podatki[[#This Row],[LITROV]],"")) -> 58.0 | M10: =IF(podatki[[#This Row],[PORABA GORIVA NA STO PREVOŽENIH KILOMETROV]]="","",100*podatki[[#This Row],[STROŠEK]]/podatki[[#This Row],[ZA POVRAČILO]]) -> 8.5
B11: 2012-05-02 | C11: Izlet | D11: 10,500 | E11: Vinograd Kolo | F11: 10,518 | G11: Pisarna | H11: Da | K11: =kilometrov -> 18 | L11: =IF(OR(LEN(podatki[[#This Row],[ŠT. KILOM. 2]]),podatki[[#This Row],[ŠT. KILOM. 1]]=""),"",IFERROR(podatki[[#This Row],[ZA POVRAČILO]]/podatki[[#This Row],[LITROV]],"")) ->  | M11: =IF(podatki[[#This Row],[PORABA GORIVA NA STO PREVOŽENIH KILOMETROV]]="","",100*podatki[[#This Row],[STROŠEK]]/podatki[[#This Row],[ZA POVRAČILO]]) -> 
B12: 2012-05-03 | C12: Izlet | D12: 10,518 | E12: Pisarna | F12: 10,745 | G12: Pisarna | H12: Da | K12: =kilometrov -> 227 | L12: =IF(OR(LEN(podatki[[#This Row],[ŠT. KILOM. 2]]),podatki[[#This Row],[ŠT. KILOM. 1]]=""),"",IFERROR(podatki[[#This Row],[ZA POVRAČILO]]/podatki[[#This Row],[LITROV]],"")) ->  | M12: =IF(podatki[[#This Row],[PORABA GORIVA NA STO PREVOŽENIH KILOMETROV]]="","",100*podatki[[#This Row],[STROŠEK]]/podatki[[#This Row],[ZA POVRAČILO]]) -> 
B13: 2012-05-04 | C13: Gorivo | D13: 10,745 | E13: Škarnice – Glavna ul. | I13: 16.60 | J13: 69.24 € | K13: =kilometrov -> 295 | L13: =IF(OR(LEN(podatki[[#This Row],[ŠT. KILOM. 2]]),podatki[[#This Row],[ŠT. KILOM. 1]]=""),"",IFERROR(podatki[[#This Row],[ZA POVRAČILO]]/podatki[[#This Row],[LITROV]],"")) -> 17.8 | M13: =IF(podatki[[#This Row],[PORABA GORIVA NA STO PREVOŽENIH KILOMETROV]]="","",100*podatki[[#This Row],[STROŠEK]]/podatki[[#This Row],[ZA POVRAČILO]]) -> 23.5
B14: 2012-05-04 | C14: Izlet | D14: 10,745 | E14: Pisarna | F14: 10,800 | G14: Spodnji Duplek | H14: Da | K14: =kilometrov -> 55 | L14: =IF(OR(LEN(podatki[[#This Row],[ŠT. KILOM. 2]]),podatki[[#This Row],[ŠT. KILOM. 1]]=""),"",IFERROR(podatki[[#This Row],[ZA POVRAČILO]]/podatki[[#This Row],[LITROV]],"")) ->  | M14: =IF(podatki[[#This Row],[PORABA GORIVA NA STO PREVOŽENIH KILOMETROV]]="","",100*podatki[[#This Row],[STROŠEK]]/podatki[[#This Row],[ZA POVRAČILO]]) -> 
B15: 2012-05-04 | C15: Izlet | D15: 10,800 | E15: Spodnji Duplek | F15: 10,875 | G15: Pisarna | H15: Da | K15: =kilometrov -> 75 | L15: =IF(OR(LEN(podatki[[#This Row],[ŠT. KILOM. 2]]),podatki[[#This Row],[ŠT. KILOM. 1]]=""),"",IFERROR(podatki[[#This Row],[ZA POVRAČILO]]/podatki[[#This Row],[LITROV]],"")) ->  | M15: =IF(podatki[[#This Row],[PORABA GORIVA NA STO PREVOŽENIH KILOMETROV]]="","",100*podatki[[#This Row],[STROŠEK]]/podatki[[#This Row],[ZA POVRAČILO]]) -> 
B16: 2012-05-07 | C16: Izlet | D16: 10,875 | E16: Pisarna | F16: 10,921 | G16: Češnjeva ulica | H16: Da | K16: =kilometrov -> 46 | L16: =IF(OR(LEN(podatki[[#This Row],[ŠT. KILOM. 2]]),podatki[[#This Row],[ŠT. KILOM. 1]]=""),"",IFERROR(podatki[[#This Row],[ZA POVRAČILO]]/podatki[[#This Row],[LITROV]],"")) ->  | M16: =IF(podatki[[#This Row],[PORABA GORIVA NA STO PREVOŽENIH KILOMETROV]]="","",100*podatki[[#This Row],[STROŠEK]]/podatki[[#This Row],[ZA POVRAČILO]]) -> 
B17: 2012-05-07 | C17: Izlet | D17: 10,921 | E17: Rjavo polje | F17: 10,969 | G17: Pisarna | H17: Da | K17: =kilometrov -> 48 | L17: =IF(OR(LEN(podatki[[#This Row],[ŠT. KILOM. 2]]),podatki[[#This Row],[ŠT. KILOM. 1]]=""),"",IFERROR(podatki[[#This Row],[ZA POVRAČILO]]/podatki[[#This Row],[LITROV]],"")) ->  | M17: =IF(podatki[[#This Row],[PORABA GORIVA NA STO PREVOŽENIH KILOMETROV]]="","",100*podatki[[#This Row],[STROŠEK]]/podatki[[#This Row],[ZA POVRAČILO]]) -> 
B18: 2012-05-09 | C18: Izlet | D18: 10,969 | E18: Pisarna | F18: 11,000 | G18: Rečni breg | H18: Da | K18: =kilometrov -> 31 | L18: =IF(OR(LEN(podatki[[#This Row],[ŠT. KILOM. 2]]),podatki[[#This Row],[ŠT. KILOM. 1]]=""),"",IFERROR(podatki[[#This Row],[ZA POVRAČILO]]/podatki[[#This Row],[LITROV]],"")) ->  | M18: =IF(podatki[[#This Row],[PORABA GORIVA NA STO PREVOŽENIH KILOMETROV]]="","",100*podatki[[#This Row],[STROŠEK]]/podatki[[#This Row],[ZA POVRAČILO]]) -> 
B19: 2012-05-09 | C19: Izlet | D19: 11,000 | E19: Rečni breg | F19: 11,100 | G19: Osnovno | H19: Št. | K19: =kilometrov -> 100 | L19: =IF(OR(LEN(podatki[[#This Row],[ŠT. KILOM. 2]]),podatki[[#This Row],[ŠT. KILOM. 1]]=""),"",IFERROR(podatki[[#This Row],[ZA POVRAČILO]]/podatki[[#This Row],[LITROV]],"")) ->  | M19: =IF(podatki[[#This Row],[PORABA GORIVA NA STO PREVOŽENIH KILOMETROV]]="","",100*podatki[[#This Row],[STROŠEK]]/podatki[[#This Row],[ZA POVRAČILO]]) -> 

Sheet podatkov v dnevniku (hidden)
A1: *** Ta list ostane skrit ***
I6: =OFFSET(I9,,drugaOs="Cena goriva") -> c/Kilometer
M7: 2
H8: Izlet | I8: Gorivo | J8: Gorivo | L8: Druga os: | M8: =REPT("PORABA GORIVA NA STO PREVOŽENIH KILOMETROV",M7=1)&REPT("Cena goriva",M7=2) -> Cena goriva
H9: prevoženih kilometrov | I9: PORABA GORIVA NA STO PREVOŽENIH KILOMETROV | J9: c/Kilometer
C10: Število kilometrov za povračilo: | D10: =SUMIFS(podatki[ZA POVRAČILO],podatki[POVRAČILO],"Da",podatki[DATUM],">="&začetekObdobja,podatki[DATUM],"<="&konecObdobja) -> 820 | F10: 1 | G10: =začetekObdobja -> 2012-05-01 | H10: =SUMIFS(podatki[ZA POVRAČILO],podatki[DATUM],G10,podatki[DEJAVNOST],$H$8) -> 162 | I10: =IFERROR(AVERAGEIFS(podatki[PORABA GORIVA NA STO PREVOŽENIH KILOMETROV],podatki[DATUM],G10,podatki[DEJAVNOST],$I$8),NA()) ->  | J10: =IFERROR(AVERAGEIFS(podatki[c/KILOMETER],podatki[DATUM],G10,podatki[DEJAVNOST],$J$8),NA()) -> 
C11: Skupno povračilo: | D11: =D10*PovračiloNaKilometer/100 -> 442.80 € | F11: 2 | G11: =G10+1 -> 2012-05-02 | H11: =SUMIFS(podatki[ZA POVRAČILO],podatki[DATUM],G11,podatki[DEJAVNOST],$H$8) -> 183 | I11: =IFERROR(AVERAGEIFS(podatki[PORABA GORIVA NA STO PREVOŽENIH KILOMETROV],podatki[DATUM],G11,podatki[DEJAVNOST],$I$8),NA()) -> 58.0 | J11: =IFERROR(AVERAGEIFS(podatki[c/KILOMETER],podatki[DATUM],G11,podatki[DEJAVNOST],$J$8),NA()) -> 8.5
F12: 3 | G12: 2012-05-03 | H12: =SUMIFS(podatki[ZA POVRAČILO],podatki[DATUM],G12,podatki[DEJAVNOST],$H$8) -> 227 | I12: =IFERROR(AVERAGEIFS(podatki[PORABA GORIVA NA STO PREVOŽENIH KILOMETROV],podatki[DATUM],G12,podatki[DEJAVNOST],$I$8),NA()) ->  | J12: =IFERROR(AVERAGEIFS(podatki[c/KILOMETER],podatki[DATUM],G12,podatki[DEJAVNOST],$J$8),NA()) -> 
F13: 4 | G13: 2012-05-04 | H13: =SUMIFS(podatki[ZA POVRAČILO],podatki[DATUM],G13,podatki[DEJAVNOST],$H$8) -> 130 | I13: =IFERROR(AVERAGEIFS(podatki[PORABA GORIVA NA STO PREVOŽENIH KILOMETROV],podatki[DATUM],G13,podatki[DEJAVNOST],$I$8),NA()) -> 17.8 | J13: =IFERROR(AVERAGEIFS(podatki[c/KILOMETER],podatki[DATUM],G13,podatki[DEJAVNOST],$J$8),NA()) -> 23.5
F14: 5 | G14: 2012-05-05 | H14: =SUMIFS(podatki[ZA POVRAČILO],podatki[DATUM],G14,podatki[DEJAVNOST],$H$8) -> 0 | I14: =IFERROR(AVERAGEIFS(podatki[PORABA GORIVA NA STO PREVOŽENIH KILOMETROV],podatki[DATUM],G14,podatki[DEJAVNOST],$I$8),NA()) ->  | J14: =IFERROR(AVERAGEIFS(podatki[c/KILOMETER],podatki[DATUM],G14,podatki[DEJAVNOST],$J$8),NA()) -> 
F15: 6 | G15: 2012-05-06 | H15: =SUMIFS(podatki[ZA POVRAČILO],podatki[DATUM],G15,podatki[DEJAVNOST],$H$8) -> 0 | I15: =IFERROR(AVERAGEIFS(podatki[PORABA GORIVA NA STO PREVOŽENIH KILOMETROV],podatki[DATUM],G15,podatki[DEJAVNOST],$I$8),NA()) ->  | J15: =IFERROR(AVERAGEIFS(podatki[c/KILOMETER],podatki[DATUM],G15,podatki[DEJAVNOST],$J$8),NA()) -> 
F16: 7 | G16: 2012-05-07 | H16: =SUMIFS(podatki[ZA POVRAČILO],podatki[DATUM],G16,podatki[DEJAVNOST],$H$8) -> 94 | I16: =IFERROR(AVERAGEIFS(podatki[PORABA GORIVA NA STO PREVOŽENIH KILOMETROV],podatki[DATUM],G16,podatki[DEJAVNOST],$I$8),NA()) ->  | J16: =IFERROR(AVERAGEIFS(podatki[c/KILOMETER],podatki[DATUM],G16,podatki[DEJAVNOST],$J$8),NA()) -> 
F17: 8 | G17: 2012-05-08 | H17: =SUMIFS(podatki[ZA POVRAČILO],podatki[DATUM],G17,podatki[DEJAVNOST],$H$8) -> 0 | I17: =IFERROR(AVERAGEIFS(podatki[PORABA GORIVA NA STO PREVOŽENIH KILOMETROV],podatki[DATUM],G17,podatki[DEJAVNOST],$I$8),NA()) ->  | J17: =IFERROR(AVERAGEIFS(podatki[c/KILOMETER],podatki[DATUM],G17,podatki[DEJAVNOST],$J$8),NA()) -> 
F18: 9 | G18: 2012-05-09 | H18: =SUMIFS(podatki[ZA POVRAČILO],podatki[DATUM],G18,podatki[DEJAVNOST],$H$8) -> 131 | I18: =IFERROR(AVERAGEIFS(podatki[PORABA GORIVA NA STO PREVOŽENIH KILOMETROV],podatki[DATUM],G18,podatki[DEJAVNOST],$I$8),NA()) ->  | J18: =IFERROR(AVERAGEIFS(podatki[c/KILOMETER],podatki[DATUM],G18,podatki[DEJAVNOST],$J$8),NA()) -> 
F19: 10 | G19: 2012-05-10 | H19: =SUMIFS(podatki[ZA POVRAČILO],podatki[DATUM],G19,podatki[DEJAVNOST],$H$8) -> 0 | I19: =IFERROR(AVERAGEIFS(podatki[PORABA GORIVA NA STO PREVOŽENIH KILOMETROV],podatki[DATUM],G19,podatki[DEJAVNOST],$I$8),NA()) ->  | J19: =IFERROR(AVERAGEIFS(podatki[c/KILOMETER],podatki[DATUM],G19,podatki[DEJAVNOST],$J$8),NA()) -> 
F20: 11 | G20: 2012-05-11 | H20: =SUMIFS(podatki[ZA POVRAČILO],podatki[DATUM],G20,podatki[DEJAVNOST],$H$8) -> 0 | I20: =IFERROR(AVERAGEIFS(podatki[PORABA GORIVA NA STO PREVOŽENIH KILOMETROV],podatki[DATUM],G20,podatki[DEJAVNOST],$I$8),NA()) ->  | J20: =IFERROR(AVERAGEIFS(podatki[c/KILOMETER],podatki[DATUM],G20,podatki[DEJAVNOST],$J$8),NA()) -> 
F21: 12 | G21: 2012-05-12 | H21: =SUMIFS(podatki[ZA POVRAČILO],podatki[DATUM],G21,podatki[DEJAVNOST],$H$8) -> 0 | I21: =IFERROR(AVERAGEIFS(podatki[PORABA GORIVA NA STO PREVOŽENIH KILOMETROV],podatki[DATUM],G21,podatki[DEJAVNOST],$I$8),NA()) ->  | J21: =IFERROR(AVERAGEIFS(podatki[c/KILOMETER],podatki[DATUM],G21,podatki[DEJAVNOST],$J$8),NA()) -> 
F22: 13 | G22: 2012-05-13 | H22: =SUMIFS(podatki[ZA POVRAČILO],podatki[DATUM],G22,podatki[DEJAVNOST],$H$8) -> 0 | I22: =IFERROR(AVERAGEIFS(podatki[PORABA GORIVA NA STO PREVOŽENIH KILOMETROV],podatki[DATUM],G22,podatki[DEJAVNOST],$I$8),NA()) ->  | J22: =IFERROR(AVERAGEIFS(podatki[c/KILOMETER],podatki[DATUM],G22,podatki[DEJAVNOST],$J$8),NA()) -> 
F23: 14 | G23: 2012-05-14 | H23: =SUMIFS(podatki[ZA POVRAČILO],podatki[DATUM],G23,podatki[DEJAVNOST],$H$8) -> 0 | I23: =IFERROR(AVERAGEIFS(podatki[PORABA GORIVA NA STO PREVOŽENIH KILOMETROV],podatki[DATUM],G23,podatki[DEJAVNOST],$I$8),NA()) ->  | J23: =IFERROR(AVERAGEIFS(podatki[c/KILOMETER],podatki[DATUM],G23,podatki[DEJAVNOST],$J$8),NA()) -> 
F24: 15 | G24: 2012-05-15 | H24: =SUMIFS(podatki[ZA POVRAČILO],podatki[DATUM],G24,podatki[DEJAVNOST],$H$8) -> 0 | I24: =IFERROR(AVERAGEIFS(podatki[PORABA GORIVA NA STO PREVOŽENIH KILOMETROV],podatki[DATUM],G24,podatki[DEJAVNOST],$I$8),NA()) ->  | J24: =IFERROR(AVERAGEIFS(podatki[c/KILOMETER],podatki[DATUM],G24,podatki[DEJAVNOST],$J$8),NA()) -> 
F25: 16 | G25: 2012-05-16 | H25: =SUMIFS(podatki[ZA POVRAČILO],podatki[DATUM],G25,podatki[DEJAVNOST],$H$8) -> 0 | I25: =IFERROR(AVERAGEIFS(podatki[PORABA GORIVA NA STO PREVOŽENIH KILOMETROV],podatki[DATUM],G25,podatki[DEJAVNOST],$I$8),NA()) ->  | J25: =IFERROR(AVERAGEIFS(podatki[c/KILOMETER],podatki[DATUM],G25,podatki[DEJAVNOST],$J$8),NA()) -> 
F26: 17 | G26: 2012-05-17 | H26: =SUMIFS(podatki[ZA POVRAČILO],podatki[DATUM],G26,podatki[DEJAVNOST],$H$8) -> 0 | I26: =IFERROR(AVERAGEIFS(podatki[PORABA GORIVA NA STO PREVOŽENIH KILOMETROV],podatki[DATUM],G26,podatki[DEJAVNOST],$I$8),NA()) ->  | J26: =IFERROR(AVERAGEIFS(podatki[c/KILOMETER],podatki[DATUM],G26,podatki[DEJAVNOST],$J$8),NA()) -> 
F27: 18 | G27: 2012-05-18 | H27: =SUMIFS(podatki[ZA POVRAČILO],podatki[DATUM],G27,podatki[DEJAVNOST],$H$8) -> 0 | I27: =IFERROR(AVERAGEIFS(podatki[PORABA GORIVA NA STO PREVOŽENIH KILOMETROV],podatki[DATUM],G27,podatki[DEJAVNOST],$I$8),NA()) ->  | J27: =IFERROR(AVERAGEIFS(podatki[c/KILOMETER],podatki[DATUM],G27,podatki[DEJAVNOST],$J$8),NA()) -> 
F28: 19 | G28: 2012-05-19 | H28: =SUMIFS(podatki[ZA POVRAČILO],podatki[DATUM],G28,podatki[DEJAVNOST],$H$8) -> 0 | I28: =IFERROR(AVERAGEIFS(podatki[PORABA GORIVA NA STO PREVOŽENIH KILOMETROV],podatki[DATUM],G28,podatki[DEJAVNOST],$I$8),NA()) ->  | J28: =IFERROR(AVERAGEIFS(podatki[c/KILOMETER],podatki[DATUM],G28,podatki[DEJAVNOST],$J$8),NA()) -> 
F29: 20 | G29: 2012-05-20 | H29: =SUMIFS(podatki[ZA POVRAČILO],podatki[DATUM],G29,podatki[DEJAVNOST],$H$8) -> 0 | I29: =IFERROR(AVERAGEIFS(podatki[PORABA GORIVA NA STO PREVOŽENIH KILOMETROV],podatki[DATUM],G29,podatki[DEJAVNOST],$I$8),NA()) ->  | J29: =IFERROR(AVERAGEIFS(podatki[c/KILOMETER],podatki[DATUM],G29,podatki[DEJAVNOST],$J$8),NA()) -> 
F30: 21 | G30: 2012-05-21 | H30: =SUMIFS(podatki[ZA POVRAČILO],podatki[DATUM],G30,podatki[DEJAVNOST],$H$8) -> 0 | I30: =IFERROR(AVERAGEIFS(podatki[PORABA GORIVA NA STO PREVOŽENIH KILOMETROV],podatki[DATUM],G30,podatki[DEJAVNOST],$I$8),NA()) ->  | J30: =IFERROR(AVERAGEIFS(podatki[c/KILOMETER],podatki[DATUM],G30,podatki[DEJAVNOST],$J$8),NA()) -> 
F31: 22 | G31: 2012-05-22 | H31: =SUMIFS(podatki[ZA POVRAČILO],podatki[DATUM],G31,podatki[DEJAVNOST],$H$8) -> 0 | I31: =IFERROR(AVERAGEIFS(podatki[PORABA GORIVA NA STO PREVOŽENIH KILOMETROV],podatki[DATUM],G31,podatki[DEJAVNOST],$I$8),NA()) ->  | J31: =IFERROR(AVERAGEIFS(podatki[c/KILOMETER],podatki[DATUM],G31,podatki[DEJAVNOST],$J$8),NA()) -> 
F32: 23 | G32: 2012-05-23 | H32: =SUMIFS(podatki[ZA POVRAČILO],podatki[DATUM],G32,podatki[DEJAVNOST],$H$8) -> 0 | I32: =IFERROR(AVERAGEIFS(podatki[PORABA GORIVA NA STO PREVOŽENIH KILOMETROV],podatki[DATUM],G32,podatki[DEJAVNOST],$I$8),NA()) ->  | J32: =IFERROR(AVERAGEIFS(podatki[c/KILOMETER],podatki[DATUM],G32,podatki[DEJAVNOST],$J$8),NA()) -> 
F33: 24 | G33: 2012-05-24 | H33: =SUMIFS(podatki[ZA POVRAČILO],podatki[DATUM],G33,podatki[DEJAVNOST],$H$8) -> 0 | I33: =IFERROR(AVERAGEIFS(podatki[PORABA GORIVA NA STO PREVOŽENIH KILOMETROV],podatki[DATUM],G33,podatki[DEJAVNOST],$I$8),NA()) ->  | J33: =IFERROR(AVERAGEIFS(podatki[c/KILOMETER],podatki[DATUM],G33,podatki[DEJAVNOST],$J$8),NA()) -> 
F34: 25 | G34: 2012-05-25 | H34: =SUMIFS(podatki[ZA POVRAČILO],podatki[DATUM],G34,podatki[DEJAVNOST],$H$8) -> 0 | I34: =IFERROR(AVERAGEIFS(podatki[PORABA GORIVA NA STO PREVOŽENIH KILOMETROV],podatki[DATUM],G34,podatki[DEJAVNOST],$I$8),NA()) ->  | J34: =IFERROR(AVERAGEIFS(podatki[c/KILOMETER],podatki[DATUM],G34,podatki[DEJAVNOST],$J$8),NA()) -> 
F35: 26 | G35: 2012-05-26 | H35: =SUMIFS(podatki[ZA POVRAČILO],podatki[DATUM],G35,podatki[DEJAVNOST],$H$8) -> 0 | I35: =IFERROR(AVERAGEIFS(podatki[PORABA GORIVA NA STO PREVOŽENIH KILOMETROV],podatki[DATUM],G35,podatki[DEJAVNOST],$I$8),NA()) ->  | J35: =IFERROR(AVERAGEIFS(podatki[c/KILOMETER],podatki[DATUM],G35,podatki[DEJAVNOST],$J$8),NA()) -> 
F36: 27 | G36: 2012-05-27 | H36: =SUMIFS(podatki[ZA POVRAČILO],podatki[DATUM],G36,podatki[DEJAVNOST],$H$8) -> 0 | I36: =IFERROR(AVERAGEIFS(podatki[PORABA GORIVA NA STO PREVOŽENIH KILOMETROV],podatki[DATUM],G36,podatki[DEJAVNOST],$I$8),NA()) ->  | J36: =IFERROR(AVERAGEIFS(podatki[c/KILOMETER],podatki[DATUM],G36,podatki[DEJAVNOST],$J$8),NA()) -> 
F37: 28 | G37: 2012-05-28 | H37: =SUMIFS(podatki[ZA POVRAČILO],podatki[DATUM],G37,podatki[DEJAVNOST],$H$8) -> 0 | I37: =IFERROR(AVERAGEIFS(podatki[PORABA GORIVA NA STO PREVOŽENIH KILOMETROV],podatki[DATUM],G37,podatki[DEJAVNOST],$I$8),NA()) ->  | J37: =IFERROR(AVERAGEIFS(podatki[c/KILOMETER],podatki[DATUM],G37,podatki[DEJAVNOST],$J$8),NA()) -> 
F38: 29 | G38: 2012-05-29 | H38: =SUMIFS(podatki[ZA POVRAČILO],podatki[DATUM],G38,podatki[DEJAVNOST],$H$8) -> 0 | I38: =IFERROR(AVERAGEIFS(podatki[PORABA GORIVA NA STO PREVOŽENIH KILOMETROV],podatki[DATUM],G38,podatki[DEJAVNOST],$I$8),NA()) ->  | J38: =IFERROR(AVERAGEIFS(podatki[c/KILOMETER],podatki[DATUM],G38,podatki[DEJAVNOST],$J$8),NA()) -> 
F39: 30 | G39: 2012-05-30 | H39: =SUMIFS(podatki[ZA POVRAČILO],podatki[DATUM],G39,podatki[DEJAVNOST],$H$8) -> 0 | I39: =IFERROR(AVERAGEIFS(podatki[PORABA GORIVA NA STO PREVOŽENIH KILOMETROV],podatki[DATUM],G39,podatki[DEJAVNOST],$I$8),NA()) ->  | J39: =IFERROR(AVERAGEIFS(podatki[c/KILOMETER],podatki[DATUM],G39,podatki[DEJAVNOST],$J$8),NA()) -> 
F40: 31 | G40: 2012-05-31 | H40: =SUMIFS(podatki[ZA POVRAČILO],podatki[DATUM],G40,podatki[DEJAVNOST],$H$8) -> 0 | I40: =IFERROR(AVERAGEIFS(podatki[PORABA GORIVA NA STO PREVOŽENIH KILOMETROV],podatki[DATUM],G40,podatki[DEJAVNOST],$I$8),NA()) ->  | J40: =IFERROR(AVERAGEIFS(podatki[c/KILOMETER],podatki[DATUM],G40,podatki[DEJAVNOST],$J$8),NA()) -> 
F41: 32 | G41: 2012-06-01 | H41: =SUMIFS(podatki[ZA POVRAČILO],podatki[DATUM],G41,podatki[DEJAVNOST],$H$8) -> 0 | I41: =IFERROR(AVERAGEIFS(podatki[PORABA GORIVA NA STO PREVOŽENIH KILOMETROV],podatki[DATUM],G41,podatki[DEJAVNOST],$I$8),NA()) ->  | J41: =IFERROR(AVERAGEIFS(podatki[c/KILOMETER],podatki[DATUM],G41,podatki[DEJAVNOST],$J$8),NA()) -> 
F42: 33 | G42: 2012-06-02 | H42: =SUMIFS(podatki[ZA POVRAČILO],podatki[DATUM],G42,podatki[DEJAVNOST],$H$8) -> 0 | I42: =IFERROR(AVERAGEIFS(podatki[PORABA GORIVA NA STO PREVOŽENIH KILOMETROV],podatki[DATUM],G42,podatki[DEJAVNOST],$I$8),NA()) ->  | J42: =IFERROR(AVERAGEIFS(podatki[c/KILOMETER],podatki[DATUM],G42,podatki[DEJAVNOST],$J$8),NA()) -> 
F43: 34 | G43: =G42+1 -> 2012-06-03 | H43: =SUMIFS(podatki[ZA POVRAČILO],podatki[DATUM],G43,podatki[DEJAVNOST],$H$8) -> 0 | I43: =IFERROR(AVERAGEIFS(podatki[PORABA GORIVA NA STO PREVOŽENIH KILOMETROV],podatki[DATUM],G43,podatki[DEJAVNOST],$I$8),NA()) ->  | J43: =IFERROR(AVERAGEIFS(podatki[c/KILOMETER],podatki[DATUM],G43,podatki[DEJAVNOST],$J$8),NA()) -> 
F44: 35 | G44: 2012-06-04 | H44: =SUMIFS(podatki[ZA POVRAČILO],podatki[DATUM],G44,podatki[DEJAVNOST],$H$8) -> 0 | I44: =IFERROR(AVERAGEIFS(podatki[PORABA GORIVA NA STO PREVOŽENIH KILOMETROV],podatki[DATUM],G44,podatki[DEJAVNOST],$I$8),NA()) ->  | J44: =IFERROR(AVERAGEIFS(podatki[c/KILOMETER],podatki[DATUM],G44,podatki[DEJAVNOST],$J$8),NA()) -> 
F45: 36 | G45: 2012-06-05 | H45: =SUMIFS(podatki[ZA POVRAČILO],podatki[DATUM],G45,podatki[DEJAVNOST],$H$8) -> 0 | I45: =IFERROR(AVERAGEIFS(podatki[PORABA GORIVA NA STO PREVOŽENIH KILOMETROV],podatki[DATUM],G45,podatki[DEJAVNOST],$I$8),NA()) ->  | J45: =IFERROR(AVERAGEIFS(podatki[c/KILOMETER],podatki[DATUM],G45,podatki[DEJAVNOST],$J$8),NA()) -> 
F46: 37 | G46: 2012-06-06 | H46: =SUMIFS(podatki[ZA POVRAČILO],podatki[DATUM],G46,podatki[DEJAVNOST],$H$8) -> 0 | I46: =IFERROR(AVERAGEIFS(podatki[PORABA GORIVA NA STO PREVOŽENIH KILOMETROV],podatki[DATUM],G46,podatki[DEJAVNOST],$I$8),NA()) ->  | J46: =IFERROR(AVERAGEIFS(podatki[c/KILOMETER],podatki[DATUM],G46,podatki[DEJAVNOST],$J$8),NA()) -> 
F47: 38 | G47: 2012-06-07 | H47: =SUMIFS(podatki[ZA POVRAČILO],podatki[DATUM],G47,podatki[DEJAVNOST],$H$8) -> 0 | I47: =IFERROR(AVERAGEIFS(podatki[PORABA GORIVA NA STO PREVOŽENIH KILOMETROV],podatki[DATUM],G47,podatki[DEJAVNOST],$I$8),NA()) ->  | J47: =IFERROR(AVERAGEIFS(podatki[c/KILOMETER],podatki[DATUM],G47,podatki[DEJAVNOST],$J$8),NA()) -> 
F48: 39 | G48: 2012-06-08 | H48: =SUMIFS(podatki[ZA POVRAČILO],podatki[DATUM],G48,podatki[DEJAVNOST],$H$8) -> 0 | I48: =IFERROR(AVERAGEIFS(podatki[PORABA GORIVA NA STO PREVOŽENIH KILOMETROV],podatki[DATUM],G48,podatki[DEJAVNOST],$I$8),NA()) ->  | J48: =IFERROR(AVERAGEIFS(podatki[c/KILOMETER],podatki[DATUM],G48,podatki[DEJAVNOST],$J$8),NA()) -> 
F49: 40 | G49: 2012-06-09 | H49: =SUMIFS(podatki[ZA POVRAČILO],podatki[DATUM],G49,podatki[DEJAVNOST],$H$8) -> 0 | I49: =IFERROR(AVERAGEIFS(podatki[PORABA GORIVA NA STO PREVOŽENIH KILOMETROV],podatki[DATUM],G49,podatki[DEJAVNOST],$I$8),NA()) ->  | J49: =IFERROR(AVERAGEIFS(podatki[c/KILOMETER],podatki[DATUM],G49,podatki[DEJAVNOST],$J$8),NA()) -> 
F50: 41 | G50: 2012-06-10 | H50: =SUMIFS(podatki[ZA POVRAČILO],podatki[DATUM],G50,podatki[DEJAVNOST],$H$8) -> 0 | I50: =IFERROR(AVERAGEIFS(podatki[PORABA GORIVA NA STO PREVOŽENIH KILOMETROV],podatki[DATUM],G50,podatki[DEJAVNOST],$I$8),NA()) ->  | J50: =IFERROR(AVERAGEIFS(podatki[c/KILOMETER],podatki[DATUM],G50,podatki[DEJAVNOST],$J$8),NA()) -> 
F51: 42 | G51: 2012-06-11 | H51: =SUMIFS(podatki[ZA POVRAČILO],podatki[DATUM],G51,podatki[DEJAVNOST],$H$8) -> 0 | I51: =IFERROR(AVERAGEIFS(podatki[PORABA GORIVA NA STO PREVOŽENIH KILOMETROV],podatki[DATUM],G51,podatki[DEJAVNOST],$I$8),NA()) ->  | J51: =IFERROR(AVERAGEIFS(podatki[c/KILOMETER],podatki[DATUM],G51,podatki[DEJAVNOST],$J$8),NA()) -> 
F52: 43 | G52: 2012-06-12 | H52: =SUMIFS(podatki[ZA POVRAČILO],podatki[DATUM],G52,podatki[DEJAVNOST],$H$8) -> 0 | I52: =IFERROR(AVERAGEIFS(podatki[PORABA GORIVA NA STO PREVOŽENIH KILOMETROV],podatki[DATUM],G52,podatki[DEJAVNOST],$I$8),NA()) ->  | J52: =IFERROR(AVERAGEIFS(podatki[c/KILOMETER],podatki[DATUM],G52,podatki[DEJAVNOST],$J$8),NA()) -> 
F53: 44 | G53: 2012-06-13 | H53: =SUMIFS(podatki[ZA POVRAČILO],podatki[DATUM],G53,podatki[DEJAVNOST],$H$8) -> 0 | I53: =IFERROR(AVERAGEIFS(podatki[PORABA GORIVA NA STO PREVOŽENIH KILOMETROV],podatki[DATUM],G53,podatki[DEJAVNOST],$I$8),NA()) ->  | J53: =IFERROR(AVERAGEIFS(podatki[c/KILOMETER],podatki[DATUM],G53,podatki[DEJAVNOST],$J$8),NA()) -> 
F54: 45 | G54: 2012-06-14 | H54: =SUMIFS(podatki[ZA POVRAČILO],podatki[DATUM],G54,podatki[DEJAVNOST],$H$8) -> 0 | I54: =IFERROR(AVERAGEIFS(podatki[PORABA GORIVA NA STO PREVOŽENIH KILOMETROV],podatki[DATUM],G54,podatki[DEJAVNOST],$I$8),NA()) ->  | J54: =IFERROR(AVERAGEIFS(podatki[c/KILOMETER],podatki[DATUM],G54,podatki[DEJAVNOST],$J$8),NA()) -> 
F55: 46 | G55: 2012-06-15 | H55: =SUMIFS(podatki[ZA POVRAČILO],podatki[DATUM],G55,podatki[DEJAVNOST],$H$8) -> 0 | I55: =IFERROR(AVERAGEIFS(podatki[PORABA GORIVA NA STO PREVOŽENIH KILOMETROV],podatki[DATUM],G55,podatki[DEJAVNOST],$I$8),NA()) ->  | J55: =IFERROR(AVERAGEIFS(podatki[c/KILOMETER],podatki[DATUM],G55,podatki[DEJAVNOST],$J$8),NA()) -> 
F56: 47 | G56: 2012-06-16 | H56: =SUMIFS(podatki[ZA POVRAČILO],podatki[DATUM],G56,podatki[DEJAVNOST],$H$8) -> 0 | I56: =IFERROR(AVERAGEIFS(podatki[PORABA GORIVA NA STO PREVOŽENIH KILOMETROV],podatki[DATUM],G56,podatki[DEJAVNOST],$I$8),NA()) ->  | J56: =IFERROR(AVERAGEIFS(podatki[c/KILOMETER],podatki[DATUM],G56,podatki[DEJAVNOST],$J$8),NA()) -> 
F57: 48 | G57: 2012-06-17 | H57: =SUMIFS(podatki[ZA POVRAČILO],podatki[DATUM],G57,podatki[DEJAVNOST],$H$8) -> 0 | I57: =IFERROR(AVERAGEIFS(podatki[PORABA GORIVA NA STO PREVOŽENIH KILOMETROV],podatki[DATUM],G57,podatki[DEJAVNOST],$I$8),NA()) ->  | J57: =IFERROR(AVERAGEIFS(podatki[c/KILOMETER],podatki[DATUM],G57,podatki[DEJAVNOST],$J$8),NA()) -> 
F58: 49 | G58: 2012-06-18 | H58: =SUMIFS(podatki[ZA POVRAČILO],podatki[DATUM],G58,podatki[DEJAVNOST],$H$8) -> 0 | I58: =IFERROR(AVERAGEIFS(podatki[PORABA GORIVA NA STO PREVOŽENIH KILOMETROV],podatki[DATUM],G58,podatki[DEJAVNOST],$I$8),NA()) ->  | J58: =IFERROR(AVERAGEIFS(podatki[c/KILOMETER],podatki[DATUM],G58,podatki[DEJAVNOST],$J$8),NA()) -> 
F59: 50 | G59: 2012-06-19 | H59: =SUMIFS(podatki[ZA POVRAČILO],podatki[DATUM],G59,podatki[DEJAVNOST],$H$8) -> 0 | I59: =IFERROR(AVERAGEIFS(podatki[PORABA GORIVA NA STO PREVOŽENIH KILOMETROV],podatki[DATUM],G59,podatki[DEJAVNOST],$I$8),NA()) ->  | J59: =IFERROR(AVERAGEIFS(podatki[c/KILOMETER],podatki[DATUM],G59,podatki[DEJAVNOST],$J$8),NA()) -> 
F60: 51 | G60: 2012-06-20 | H60: =SUMIFS(podatki[ZA POVRAČILO],podatki[DATUM],G60,podatki[DEJAVNOST],$H$8) -> 0 | I60: =IFERROR(AVERAGEIFS(podatki[PORABA GORIVA NA STO PREVOŽENIH KILOMETROV],podatki[DATUM],G60,podatki[DEJAVNOST],$I$8),NA()) ->  | J60: =IFERROR(AVERAGEIFS(podatki[c/KILOMETER],podatki[DATUM],G60,podatki[DEJAVNOST],$J$8),NA()) -> 
F61: 52 | G61: 2012-06-21 | H61: =SUMIFS(podatki[ZA POVRAČILO],podatki[DATUM],G61,podatki[DEJAVNOST],$H$8) -> 0 | I61: =IFERROR(AVERAGEIFS(podatki[PORABA GORIVA NA STO PREVOŽENIH KILOMETROV],podatki[DATUM],G61,podatki[DEJAVNOST],$I$8),NA()) ->  | J61: =IFERROR(AVERAGEIFS(podatki[c/KILOMETER],podatki[DATUM],G61,podatki[DEJAVNOST],$J$8),NA()) -> 
F62: 53 | G62: 2012-06-22 | H62: =SUMIFS(podatki[ZA POVRAČILO],podatki[DATUM],G62,podatki[DEJAVNOST],$H$8) -> 0 | I62: =IFERROR(AVERAGEIFS(podatki[PORABA GORIVA NA STO PREVOŽENIH KILOMETROV],podatki[DATUM],G62,podatki[DEJAVNOST],$I$8),NA()) ->  | J62: =IFERROR(AVERAGEIFS(podatki[c/KILOMETER],podatki[DATUM],G62,podatki[DEJAVNOST],$J$8),NA()) -> 
F63: 54 | G63: 2012-06-23 | H63: =SUMIFS(podatki[ZA POVRAČILO],podatki[DATUM],G63,podatki[DEJAVNOST],$H$8) -> 0 | I63: =IFERROR(AVERAGEIFS(podatki[PORABA GORIVA NA STO PREVOŽENIH KILOMETROV],podatki[DATUM],G63,podatki[DEJAVNOST],$I$8),NA()) ->  | J63: =IFERROR(AVERAGEIFS(podatki[c/KILOMETER],podatki[DATUM],G63,podatki[DEJAVNOST],$J$8),NA()) -> 
F64: 55 | G64: 2012-06-24 | H64: =SUMIFS(podatki[ZA POVRAČILO],podatki[DATUM],G64,podatki[DEJAVNOST],$H$8) -> 0 | I64: =IFERROR(AVERAGEIFS(podatki[PORABA GORIVA NA STO PREVOŽENIH KILOMETROV],podatki[DATUM],G64,podatki[DEJAVNOST],$I$8),NA()) ->  | J64: =IFERROR(AVERAGEIFS(podatki[c/KILOMETER],podatki[DATUM],G64,podatki[DEJAVNOST],$J$8),NA()) -> 
F65: 56 | G65: 2012-06-25 | H65: =SUMIFS(podatki[ZA POVRAČILO],podatki[DATUM],G65,podatki[DEJAVNOST],$H$8) -> 0 | I65: =IFERROR(AVERAGEIFS(podatki[PORABA GORIVA NA STO PREVOŽENIH KILOMETROV],podatki[DATUM],G65,podatki[DEJAVNOST],$I$8),NA()) ->  | J65: =IFERROR(AVERAGEIFS(podatki[c/KILOMETER],podatki[DATUM],G65,podatki[DEJAVNOST],$J$8),NA()) -> 
F66: 57 | G66: 2012-06-26 | H66: =SUMIFS(podatki[ZA POVRAČILO],podatki[DATUM],G66,podatki[DEJAVNOST],$H$8) -> 0 | I66: =IFERROR(AVERAGEIFS(podatki[PORABA GORIVA NA STO PREVOŽENIH KILOMETROV],podatki[DATUM],G66,podatki[DEJAVNOST],$I$8),NA()) ->  | J66: =IFERROR(AVERAGEIFS(podatki[c/KILOMETER],podatki[DATUM],G66,podatki[DEJAVNOST],$J$8),NA()) -> 
F67: 58 | G67: 2012-06-27 | H67: =SUMIFS(podatki[ZA POVRAČILO],podatki[DATUM],G67,podatki[DEJAVNOST],$H$8) -> 0 | I67: =IFERROR(AVERAGEIFS(podatki[PORABA GORIVA NA STO PREVOŽENIH KILOMETROV],podatki[DATUM],G67,podatki[DEJAVNOST],$I$8),NA()) ->  | J67: =IFERROR(AVERAGEIFS(podatki[c/KILOMETER],podatki[DATUM],G67,podatki[DEJAVNOST],$J$8),NA()) -> 
F68: 59 | G68: 2012-06-28 | H68: =SUMIFS(podatki[ZA POVRAČILO],podatki[DATUM],G68,podatki[DEJAVNOST],$H$8) -> 0 | I68: =IFERROR(AVERAGEIFS(podatki[PORABA GORIVA NA STO PREVOŽENIH KILOMETROV],podatki[DATUM],G68,podatki[DEJAVNOST],$I$8),NA()) ->  | J68: =IFERROR(AVERAGEIFS(podatki[c/KILOMETER],podatki[DATUM],G68,podatki[DEJAVNOST],$J$8),NA()) -> 
F69: 60 | G69: 2012-06-29 | H69: =SUMIFS(podatki[ZA POVRAČILO],podatki[DATUM],G69,podatki[DEJAVNOST],$H$8) -> 0 | I69: =IFERROR(AVERAGEIFS(podatki[PORABA GORIVA NA STO PREVOŽENIH KILOMETROV],podatki[DATUM],G69,podatki[DEJAVNOST],$I$8),NA()) ->  | J69: =IFERROR(AVERAGEIFS(podatki[c/KILOMETER],podatki[DATUM],G69,podatki[DEJAVNOST],$J$8),NA()) -> 
